bitfinex/quotes_BTCUSD_20250903
["timestamp","ask_amount","ask_price","bid_price","bid_amount"]
[1756884902667,0.55251575,110990.0,110980.0,0.18303]
[1756884902900,0.55251575,110990.0,110980.0,0.1861]
[1756884903125,0.03016934,110990.0,110980.0,0.92969665]
[1756884903332,0.0030844,110990.0,110980.0,0.92969665]
[1756884903958,0.0030844,110990.0,110980.0,0.53091873]
[1756884904170,0.0030844,110990.0,110980.0,0.95677792]
[1756884905766,0.0030844,110990.0,110980.0,0.53091873]
[1756884905975,0.0030844,110990.0,110980.0,0.95677792]
[1756884907529,0.0030844,110990.0,110980.0,1.35677792]
[1756884916178,0.0030844,110990.0,110980.0,1.32969665]
[1756884918823,0.0030844,110990.0,110980.0,1.48305665]
[1756884924506,0.0030844,110990.0,110980.0,1.54776491]
[1756884924701,0.0030844,110990.0,110980.0,1.57484174]
[1756884925675,0.0020844,110990.0,110980.0,1.57384174]
[1756884926287,0.0030844,110990.0,110980.0,1.57884174]
[1756884927265,0.0010844,110990.0,110980.0,1.57884174]
[1756884927785,0.0030844,110990.0,110980.0,1.57884174]
[1756884928712,0.0010844,110990.0,110980.0,1.57884174]
[1756884929210,0.0010844,110990.0,110980.0,1.58084174]
[1756884929640,0.0032144,110990.0,110980.0,1.40281174]
[1756884929854,0.0032144,110990.0,110980.0,0.61232864]
[1756884929855,0.0064344,110990.0,110980.0,0.61232864]
[1756884930067,0.0064344,110990.0,110980.0,0.27891599]
[1756884930286,0.0064344,110990.0,110980.0,0.43211599]
[1756884930498,0.18663081,110990.0,110980.0,0.43211599]
[1756884931124,0.18663081,110990.0,110980.0,0.61232864]
[1756884931338,0.18663081,110990.0,110980.0,0.63326746]
[1756884931555,0.18663081,110990.0,110980.0,0.61232864]
[1756884931734,0.18663081,110990.0,110980.0,0.63326746]
[1756884935036,0.18663081,110990.0,110980.0,0.63322746]
[1756884936229,0.18663081,110990.0,110980.0,0.48006746]
[1756884936471,0.18663081,110990.0,110980.0,0.63322746]
[1756884938258,0.18341081,110990.0,110980.0,0.63521746]
[1756884938666,0.18341081,110990.0,110980.0,0.63318746]
[1756884939517,0.18341081,110990.0,110980.0,0.63322746]
[1756884939855,0.18660081,110990.0,110980.0,0.63322746]
[1756884940057,0.18660081,110990.0,110980.0,0.63318746]
[1756884941460,0.0032144,110990.0,110980.0,0.63531746]
[1756884941661,0.0010844,110990.0,110980.0,1.06411665]
[1756884941860,0.0010844,110990.0,110980.0,1.08798665]
[1756884948155,0.0010844,110990.0,110980.0,1.48798665]
[1756884950498,0.0010844,110990.0,110980.0,1.51506308]
[1756884951545,0.0010844,110990.0,110980.0,2.04650527]
[1756884955841,0.0010844,110990.0,110980.0,1.57428481]
[1756884956043,0.0010844,110990.0,110980.0,1.72724481]
[1756884971524,0.0010844,110990.0,110980.0,1.80781997]
[1756884972570,0.0010844,110990.0,110980.0,2.12692043]
[1756884976496,0.0010844,110990.0,110980.0,2.04634527]
[1756884979550,0.0010844,110990.0,110980.0,2.15933367]
[1756884980046,0.0010844,110990.0,110980.0,1.80798418]
[1756884989829,0.0010844,110990.0,110980.0,1.87146418]
[1756884993826,0.0010844,110990.0,110980.0,2.19056464]
[1756884994420,0.00301,111020.0,110980.0,2.53056464]
[1756884994625,0.00301,111020.0,111010.0,0.52020322]
[1756884994867,0.00301,111020.0,111010.0,0.82819921]
[1756884995068,0.00502,111020.0,111010.0,0.82819921]
[1756884995451,0.00502,111020.0,111010.0,0.83740582]
[1756884996148,0.00502,111020.0,111010.0,1.23740582]
[1756884996584,0.00602,111020.0,111010.0,1.23740582]
[1756884997270,0.00602,111020.0,111010.0,1.23840582]
[1756884998849,0.00502,111020.0,111010.0,1.23840582]
[1756884999267,0.00602,111020.0,111010.0,1.23840582]
[1756885002473,0.00301,111020.0,111010.0,1.23840582]
[1756885006779,0.00301,111020.0,111010.0,1.24042582]
[1756885008435,0.001,111020.0,111010.0,1.24344582]
[1756885008659,0.001,111020.0,111010.0,1.26787582]
[1756885008837,0.001,111020.0,111010.0,1.58697628]
[1756885009943,8.449e-05,111030.0,111020.0,0.20108654]
[1756885010126,8.449e-05,111030.0,111020.0,1.08666345]
[1756885010363,8.449e-05,111030.0,111020.0,1.08868345]
[1756885010576,8.449e-05,111030.0,111020.0,1.51311345]
[1756885011621,8.449e-05,111030.0,111020.0,1.30416037]
[1756885011798,0.00108449,111030.0,111020.0,1.30416037]
[1756885012387,0.00108449,111030.0,111020.0,1.30516037]
[1756885018829,0.00108449,111030.0,111020.0,1.15272037]
[1756885019038,0.00108449,111030.0,111020.0,1.30508037]
[1756885019353,0.00108449,111030.0,111020.0,1.15272037]
[1756885019487,0.00108449,111030.0,111020.0,1.30508037]
[1756885021677,0.00108449,111030.0,111020.0,1.15272037]
[1756885021844,0.00108449,111030.0,111020.0,1.30504037]
[1756885027145,0.00108449,111030.0,111020.0,1.69504037]
[1756885027617,0.0002,111050.0,111040.0,0.62630193]
[1756885027815,0.0002,111050.0,111040.0,0.93397792]
[1756885028036,0.0002,111050.0,111040.0,0.93901792]
[1756885028240,0.0002,111050.0,111040.0,1.33901792]
[1756885029444,0.0012,111050.0,111040.0,1.34201792]
[1756885029847,0.0012,111050.0,111040.0,1.38539188]
[1756885030240,0.0002,111060.0,111050.0,0.20103787]
[1756885030416,0.0002,111060.0,111050.0,0.8704417]
[1756885030625,0.00028446,111060.0,111050.0,0.8755417]
[1756885031037,0.00028446,111060.0,111050.0,1.2755417]
[1756885032527,0.00028446,111060.0,111050.0,1.2775417]
[1756885033632,0.00028446,111060.0,111050.0,1.2775017]
[1756885033817,0.00028446,111060.0,111050.0,1.2785017]
[1756885036733,0.00028446,111060.0,111050.0,1.2784617]
[1756885038225,0.06725077,111080.0,111070.0,0.18006662]
[1756885038449,0.06933077,111080.0,111070.0,0.48758261]
[1756885038676,0.00208,111080.0,111070.0,0.48758261]
[1756885038906,0.00208,111080.0,111070.0,0.88758261]
[1756885040016,0.00308,111080.0,111070.0,0.88758261]
[1756885040440,0.00408,111080.0,111070.0,0.88758261]
[1756885040886,0.00626,111080.0,111070.0,0.88758261]
[1756885041068,0.00408,111080.0,111070.0,0.88758261]
[1756885047471,0.00408,111080.0,111070.0,0.89053261]
[1756885048506,0.00408,111080.0,111070.0,0.89268261]
[1756885052684,0.002,111080.0,111070.0,0.89268261]
[1756885052916,0.002,111080.0,111070.0,1.33886927]
[1756885053139,0.002,111080.0,111070.0,1.36353927]
[1756885053940,0.002,111080.0,111070.0,1.40428948]
[1756885054180,0.001,111080.0,111070.0,1.40428948]
[1756885054784,0.001,111080.0,111070.0,1.43134382]
[1756885055268,0.0002,111090.0,111080.0,0.20098923]
[1756885055470,0.0002,111090.0,111080.0,0.87310306]
[1756885055645,0.0002,111090.0,111080.0,0.87525306]
[1756885056034,0.0002,111090.0,111080.0,1.27525306]
[1756885056981,0.0002,111090.0,111080.0,1.33976467]
[1756885058280,0.0002,111090.0,111080.0,0.85000522]
[1756885058499,0.0002,111090.0,111080.0,1.33976467]
[1756885059091,0.0002,111090.0,111080.0,1.36236467]
[1756885059282,0.0002,111090.0,111080.0,1.29785306]
[1756885061688,0.0002,111090.0,111080.0,0.87260522]
[1756885061875,0.0002,111090.0,111080.0,0.72060522]
[1756885062081,0.00218,111090.0,111080.0,1.27521306]
[1756885062247,0.0002,111090.0,111080.0,1.27521306]
[1756885063113,0.0002,111090.0,111080.0,0.84996522]
[1756885063343,0.00218,111090.0,111080.0,0.84486522]
[1756885064033,0.00218,111090.0,111080.0,0.84482522]
[1756885064264,0.00218,111090.0,111080.0,0.69290522]
[1756885064494,0.00446,111090.0,111080.0,0.69290522]
[1756885064943,0.00446,111090.0,111080.0,0.84482522]
[1756885065356,0.00446,111090.0,111080.0,0.44482522]
[1756885065878,0.00218,111090.0,111080.0,0.44805522]
[1756885066083,0.00218,111090.0,111080.0,0.45020522]
[1756885067248,0.0002,111090.0,111080.0,0.45020522]
[1756885070310,0.00218,111090.0,111080.0,0.45020522]
[1756885070541,0.0002,111090.0,111080.0,0.45020522]
[1756885071152,0.42544784,111090.0,111080.0,0.45020522]
[1756885071534,0.0002,111090.0,111080.0,0.45020522]
[1756885072387,0.0002,111090.0,111080.0,0.85020522]
[1756885073364,0.0002,111090.0,111080.0,0.9147321]
[1756885073573,0.0002,111090.0,111080.0,0.85020522]
[1756885074579,0.3090946,111100.0,111090.0,0.1800342]
[1756885074803,0.0270547,111110.0,111100.0,0.20095682]
[1756885075030,0.02917529,111110.0,111100.0,0.51138281]
[1756885076185,0.34786989,111110.0,111100.0,0.51138281]
[1756885076653,0.34986989,111110.0,111100.0,0.51138281]
[1756885077072,0.34986989,111110.0,111100.0,0.51353281]
[1756885077318,0.02919529,111110.0,111100.0,0.51353281]
[1756885077524,0.34788989,111110.0,111100.0,0.51353281]
[1756885077748,0.03119529,111110.0,111100.0,0.51353281]
[1756885077987,0.00414059,111110.0,111100.0,0.51353281]
[1756885078423,0.00414059,111110.0,111100.0,0.83222741]
[1756885078633,0.00414059,111110.0,111100.0,0.91935429]
[1756885078820,0.00214059,111110.0,111100.0,0.92819451]
[1756885079145,0.00114059,111110.0,111100.0,0.92819451]
[1756885079772,0.00014059,111110.0,111100.0,1.32819451]
[1756885080762,0.00114059,111110.0,111100.0,1.58236223]
[1756885080982,0.00114059,111110.0,111100.0,2.00290594]
[1756885081154,0.00014059,111110.0,111100.0,2.00290594]
[1756885082403,0.00014059,111110.0,111100.0,2.00490594]
[1756885082611,0.00014059,111110.0,111100.0,1.36751674]
[1756885082809,0.00014059,111110.0,111100.0,2.00490594]
[1756885083044,0.00014059,111110.0,111100.0,2.04619496]
[1756885083493,0.00014059,111110.0,111100.0,1.96565125]
[1756885083706,0.00014059,111110.0,111100.0,2.04619496]
[1756885084171,0.07354631,111140.0,111130.0,0.20090822]
[1756885084435,0.07401475,111140.0,111130.0,0.36164421]
[1756885084884,0.07599475,111140.0,111130.0,0.91340421]
[1756885085094,0.00244844,111140.0,111130.0,0.91340421]
[1756885085302,0.00046844,111140.0,111130.0,0.91340421]
[1756885085724,0.00246844,111140.0,111130.0,0.91340421]
[1756885086145,0.00446844,111140.0,111130.0,0.91340421]
[1756885087198,0.00246844,111140.0,111130.0,1.23209881]
[1756885087404,0.00246844,111140.0,111130.0,1.08033881]
[1756885087405,0.00046844,111140.0,111130.0,1.08033881]
[1756885087602,0.00046844,111140.0,111130.0,0.91340421]
[1756885087815,0.32114304,111140.0,111130.0,0.90802421]
[1756885088272,0.00244844,111140.0,111130.0,0.91340421]
[1756885088500,0.32114304,111140.0,111130.0,0.91340421]
[1756885089081,0.00244844,111140.0,111130.0,0.91340421]
[1756885089288,0.32114304,111140.0,111130.0,0.91340421]
[1756885089496,0.32214304,111140.0,111130.0,0.91340421]
[1756885089932,0.32114304,111140.0,111130.0,0.91340421]
[1756885090536,0.32114304,111140.0,111130.0,0.76164421]
[1756885090750,0.32114304,111140.0,111130.0,0.90798421]
[1756885091577,0.32114304,111140.0,111130.0,0.75626421]
[1756885091810,0.63983764,111140.0,111130.0,0.90798421]
[1756885092300,0.64211764,111140.0,111130.0,0.90798421]
[1756885092711,0.63983764,111140.0,111130.0,0.50798421]
[1756885093713,0.64211764,111140.0,111130.0,0.50798421]
[1756885094553,0.82207085,111140.0,111130.0,0.30703599]
[1756885094998,0.82207085,111140.0,111130.0,0.15535599]
[1756885094999,1.16781272,111140.0,111130.0,0.15535599]
[1756885095215,1.16781272,111140.0,111130.0,0.30703599]
[1756885095431,1.16781272,111140.0,111130.0,0.15535599]
[1756885095679,1.16781272,111140.0,111130.0,0.32797481]
[1756885095863,1.16781272,111140.0,111130.0,0.17629481]
[1756885096067,0.84911812,111140.0,111130.0,0.32797481]
[1756885096845,1.16781272,111140.0,111130.0,0.08437882]
[1756885097126,1.16781272,111140.0,111130.0,0.23605882]
[1756885097332,0.84911812,111140.0,111130.0,0.23605882]
[1756885097757,1.16781272,111140.0,111130.0,0.23605882]
[1756885097969,1.16781272,111140.0,111130.0,0.08437882]
[1756885098200,1.16781272,111140.0,111130.0,0.23605882]
[1756885098411,1.16777272,111140.0,111130.0,0.23605882]
[1756885099981,0.84907812,111140.0,111130.0,0.23605882]
[1756885100191,0.84679812,111140.0,111130.0,0.41602822]
[1756885100942,0.84679812,111140.0,111130.0,0.23605882]
[1756885101173,0.84679812,111140.0,111130.0,0.41602822]
[1756885101372,0.84679812,111140.0,111130.0,0.23605882]
[1756885101536,0.84907812,111140.0,111130.0,0.23605882]
[1756885103862,0.84907812,111140.0,111130.0,0.41602822]
[1756885104067,0.84679812,111140.0,111130.0,0.23605882]
[1756885104939,0.84679812,111140.0,111130.0,0.41602822]
[1756885105351,0.20940892,111140.0,111130.0,0.41602822]
[1756885105587,0.84679812,111140.0,111130.0,0.41602822]
[1756885106034,0.02945571,111140.0,111130.0,0.51304421]
[1756885106247,0.66486491,111140.0,111130.0,0.51304421]
[1756885106891,0.63781764,111140.0,111130.0,0.51304421]
[1756885107759,0.66486405,111140.0,111130.0,0.51304421]
[1756885108605,0.02747485,111140.0,111130.0,0.51304421]
[1756885108808,0.63781764,111140.0,111130.0,0.51304421]
[1756885110709,0.00042844,111140.0,111130.0,0.51304421]
[1756885110929,0.63781764,111140.0,111130.0,0.51304421]
[1756885113245,0.81777085,111140.0,111130.0,0.51304421]
[1756885113592,0.63979764,111140.0,111130.0,0.51094421]
[1756885113781,0.63979764,111140.0,111130.0,0.51304421]
[1756885114534,0.63979764,111140.0,111130.0,0.50794421]
[1756885115418,0.63979764,111140.0,111130.0,0.51094421]
[1756885115629,0.00240844,111140.0,111130.0,0.51304421]
[1756885115852,0.63979764,111140.0,111130.0,0.51304421]
[1756885116456,0.63781764,111140.0,111130.0,0.51304421]
[1756885116680,0.63980764,111140.0,111130.0,0.51304421]
[1756885116898,0.63980764,111140.0,111130.0,0.50794421]
[1756885117121,0.63980764,111140.0,111130.0,0.51304421]
[1756885117351,0.63781764,111140.0,111130.0,0.51304421]
[1756885117978,0.63979764,111140.0,111130.0,0.51304421]
[1756885119054,0.63979764,111140.0,111130.0,0.50794421]
[1756885119267,0.81975085,111140.0,111130.0,0.35626421]
[1756885119488,0.81975085,111140.0,111130.0,0.50782421]
[1756885122983,0.63979764,111140.0,111130.0,0.50782421]
[1756885123193,0.63979764,111140.0,111130.0,0.51091421]
[1756885123622,0.00240844,111140.0,111130.0,0.51289421]
[1756885123797,0.81975085,111140.0,111130.0,0.51289421]
[1756885124029,0.81975085,111140.0,111130.0,0.50782421]
[1756885124642,0.81975085,111140.0,111130.0,0.08437882]
[1756885124903,1.48072545,111140.0,111130.0,0.215]
[1756885125113,1.50777576,111140.0,111130.0,0.23593882]
[1756885125317,1.18680116,111140.0,111130.0,0.215]
[1756885125735,1.18680116,111140.0,111130.0,0.23593882]
[1756885126940,1.50777576,111140.0,111130.0,0.23593882]
[1756885128652,1.50549576,111140.0,111130.0,0.23593882]
[1756885128856,0.54941196,111140.0,111130.0,0.23593882]
[1756885129091,1.18680116,111140.0,111130.0,0.23593882]
[1756885130990,1.50549576,111140.0,111130.0,0.23593882]
[1756885131973,1.18680116,111140.0,111130.0,0.23593882]
[1756885133493,0.54941196,111140.0,111130.0,0.23593882]
[1756885133663,0.97412939,111140.0,111130.0,0.23593882]
[1756885134351,0.54941196,111140.0,111130.0,0.23593882]
[1756885134528,0.97412939,111140.0,111130.0,0.23593882]
[1756885140304,0.97640939,111140.0,111130.0,0.23585882]
[1756885140523,0.1799856,111120.0,111110.0,0.06653]
[1756885140741,0.94470303,111120.0,111110.0,0.08437882]
[1756885140930,0.94668303,111120.0,111110.0,0.06344]
[1756885141185,0.54901923,111120.0,111110.0,0.3949218]
[1756885141446,0.97373666,111120.0,111110.0,0.3999918]
[1756885141658,0.97373666,111120.0,111110.0,0.42093062]
[1756885142288,0.97473666,111120.0,111110.0,0.42093062]
[1756885142507,0.55001923,111120.0,111110.0,0.42093062]
[1756885142732,0.97473666,111120.0,111110.0,0.24092882]
[1756885142983,0.97373666,111120.0,111110.0,0.24092882]
[1756885143317,0.97473666,111120.0,111110.0,0.24092882]
[1756885143765,0.97573666,111120.0,111110.0,0.42093062]
[1756885144137,0.97473666,111120.0,111110.0,0.42093062]
[1756885144729,0.97573666,111120.0,111110.0,0.42093062]
[1756885144944,0.97573666,111120.0,111110.0,0.24092882]
[1756885145415,0.98465416,111120.0,111110.0,0.24092882]
[1756885147460,0.55993673,111120.0,111110.0,0.24092882]
[1756885147663,0.98465416,111120.0,111110.0,0.24092882]
[1756885147865,0.98465416,111120.0,111110.0,0.23585882]
[1756885148323,0.98267416,111120.0,111110.0,0.24092882]
[1756885148486,0.98465416,111120.0,111110.0,0.24092882]
[1756885149260,0.98465416,111120.0,111110.0,0.23585882]
[1756885152138,0.98693416,111120.0,111110.0,0.08437882]
[1756885152356,1.41165159,111120.0,111110.0,0.23581882]
[1756885153007,0.98693416,111120.0,111110.0,0.23581882]
[1756885153268,1.41165159,111120.0,111110.0,0.23581882]
[1756885155157,0.98693416,111120.0,111110.0,0.23581882]
[1756885155541,1.41165159,111120.0,111110.0,0.23581882]
[1756885155778,1.41165159,111120.0,111110.0,0.17237882]
[1756885157425,1.41165159,111120.0,111110.0,1.87237882]
[1756885159344,1.40937159,111120.0,111110.0,1.87237882]
[1756885159968,1.41165159,111120.0,111110.0,1.87237882]
[1756885160322,1.40937159,111120.0,111110.0,1.87237882]
[1756885164020,0.98465416,111120.0,111110.0,1.87552882]
[1756885165253,0.98465416,111120.0,111110.0,1.87237882]
[1756885165847,1.40937159,111120.0,111110.0,1.87237882]
[1756885166869,1.40937159,111120.0,111110.0,1.87552882]
[1756885168724,1.40937159,111120.0,111110.0,1.87237882]
[1756885169457,1.40937159,111120.0,111110.0,1.87552882]
[1756885170676,1.40937159,111120.0,111110.0,1.87237882]
[1756885171099,1.40937159,111120.0,111110.0,1.87756882]
[1756885172469,0.98465416,111120.0,111110.0,1.87756882]
[1756885176057,1.40937159,111120.0,111110.0,1.87756882]
[1756885176695,0.98267416,111120.0,111110.0,1.87756882]
[1756885177323,0.55795673,111120.0,111110.0,1.87756882]
[1756885177540,0.98267416,111120.0,111110.0,1.87756882]
[1756885179590,0.55795673,111120.0,111110.0,1.87756882]
[1756885179756,0.98267416,111120.0,111110.0,1.87756882]
[1756885180991,0.98465416,111120.0,111110.0,1.87748882]
[1756885181237,0.98465416,111120.0,111110.0,1.87544882]
[1756885181561,0.98465416,111120.0,111110.0,1.87755882]
[1756885182790,0.98267416,111120.0,111110.0,1.87755882]
[1756885185410,0.98465416,111120.0,111110.0,1.87755882]
[1756885185920,0.98267416,111120.0,111110.0,1.87755882]
[1756885187687,0.98465416,111120.0,111110.0,1.87755882]
[1756885188101,1.40937159,111120.0,111110.0,1.72619882]
[1756885188323,1.40937159,111120.0,111110.0,1.87225882]
[1756885188978,1.40937159,111120.0,111110.0,1.87740882]
[1756885190528,1.40739159,111120.0,111110.0,1.87740882]
[1756885191576,1.40739159,111120.0,111110.0,1.96235142]
[1756885191810,0.98267416,111120.0,111110.0,1.96235142]
[1756885193117,0.98465416,111120.0,111110.0,1.96235142]
[1756885193323,1.40937159,111120.0,111110.0,1.96235142]
[1756885193528,1.19736145,111120.0,111110.0,1.96235142]
[1756885197240,1.19736145,111120.0,111110.0,1.96231142]
[1756885200860,1.66735381,111120.0,111110.0,1.7849426]
[1756885201074,2.23221159,111120.0,111110.0,1.9362226]
[1756885201279,2.23221159,111120.0,111110.0,1.7849426]
[1756885203300,2.23121159,111120.0,111110.0,1.7849426]
[1756885203498,2.23421159,111120.0,111110.0,1.7849426]
[1756885203698,2.23421159,111120.0,111110.0,1.7859426]
[1756885203897,2.23921159,111120.0,111110.0,1.7859426]
[1756885204116,2.23521159,111120.0,111110.0,1.7859426]
[1756885204434,2.23721159,111120.0,111110.0,1.7859426]
[1756885204606,2.23221159,111120.0,111110.0,1.7849426]
[1756885204807,2.25166483,111120.0,111110.0,1.7849426]
[1756885205017,2.25466483,111120.0,111110.0,1.7849426]
[1756885205241,2.23521159,111120.0,111110.0,1.7849426]
[1756885205422,2.25466185,111120.0,111110.0,1.7849426]
[1756885209526,2.25239185,111120.0,111110.0,1.7849426]
[1756885209741,2.25466185,111120.0,111110.0,1.7849426]
[1756885211133,2.25464922,111120.0,111110.0,1.7849426]
[1756885211764,2.32851061,111120.0,111110.0,1.7849426]
[1756885211976,1.89161061,111120.0,111110.0,1.7849426]
[1756885214002,1.84161061,111120.0,111110.0,1.7849426]
[1756885214259,1.89161061,111120.0,111110.0,1.7849426]
[1756885214818,1.89793569,111120.0,111110.0,1.7849426]
[1756885215158,1.96137569,111120.0,111110.0,1.7849426]
[1756885215382,1.81009569,111120.0,111110.0,1.7849426]
[1756885215586,1.96133569,111120.0,111110.0,1.7849426]
[1756885216458,1.96131424,111120.0,111110.0,1.7849426]
[1756885216862,1.95904424,111120.0,111110.0,1.7849426]
[1756885219189,1.93518285,111120.0,111110.0,1.7849426]
[1756885219789,1.93517797,111120.0,111110.0,1.7849426]
[1756885219999,1.98517797,111120.0,111110.0,1.7849426]
[1756885221776,1.93517797,111120.0,111110.0,1.7849426]
[1756885221982,1.98517797,111120.0,111110.0,1.7849426]
[1756885223327,1.83393797,111120.0,111110.0,1.7849426]
[1756885223634,1.98517797,111120.0,111110.0,1.7881426]
[1756885224260,1.93517797,111120.0,111110.0,1.7881426]
[1756885224457,1.98517797,111120.0,111110.0,1.7902526]
[1756885227060,1.98513797,111120.0,111110.0,1.7902526]
[1756885231178,2.07705396,111120.0,111110.0,1.7902526]
[1756885231385,2.02705396,111120.0,111110.0,1.7902526]
[1756885231582,1.98513797,111120.0,111110.0,1.7902526]
[1756885232588,1.93513797,111120.0,111110.0,1.7902526]
[1756885232799,1.98513797,111120.0,111110.0,1.7902526]
[1756885233253,1.93513797,111120.0,111110.0,1.7902526]
[1756885233434,1.98513797,111120.0,111110.0,1.7902526]
[1756885233632,1.93513797,111120.0,111110.0,1.7902526]
[1756885233788,1.98513797,111120.0,111110.0,1.7902526]
[1756885233997,0.87780089,111120.0,111110.0,1.7902526]
[1756885234204,1.98513797,111120.0,111110.0,1.7902526]
[1756885235243,2.00203296,111120.0,111110.0,1.7902526]
[1756885237358,2.02631979,111120.0,111110.0,1.7902526]
[1756885246170,1.87511979,111120.0,111110.0,1.7902526]
[1756885246379,1.87313979,111120.0,111110.0,1.7902526]
[1756885246587,2.02425979,111120.0,111110.0,1.7902526]
[1756885248694,1.87313979,111120.0,111110.0,1.7902526]
[1756885248859,2.02425979,111120.0,111110.0,1.7902526]
[1756885250903,1.5890435,111120.0,111110.0,1.7902526]
[1756885251226,1.5390435,111120.0,111110.0,1.7902526]
[1756885251442,1.4379235,111120.0,111110.0,1.7902526]
[1756885251644,1.5890435,111120.0,111110.0,1.7902526]
[1756885253924,1.90775586,111120.0,111110.0,1.7902526]
[1756885254127,2.0419082,111120.0,111110.0,1.7902526]
[1756885254303,1.97500733,111120.0,111110.0,1.7902526]
[1756885254492,1.94999224,111120.0,111110.0,1.7902526]
[1756885255008,1.97427907,111120.0,111110.0,1.7902526]
[1756885255501,1.86819285,111120.0,111110.0,1.7902526]
[1756885257431,1.81819285,111120.0,111110.0,1.7902526]
[1756885257848,1.86819285,111120.0,111110.0,1.7902526]
[1756885258827,0.86702199,111120.0,111110.0,1.7902526]
[1756885259028,1.86819285,111120.0,111110.0,1.7902526]
[1756885259258,1.82700512,111120.0,111110.0,1.7902526]
[1756885259866,1.20085969,111120.0,111110.0,1.7902526]
[1756885260073,0.90159215,111120.0,111110.0,1.8127726]
[1756885260281,1.32661758,111120.0,111110.0,1.8127726]
[1756885260699,1.32663545,111120.0,111110.0,1.8127726]
[1756885260910,1.37663545,111120.0,111110.0,1.8127726]
[1756885261343,1.92086898,111120.0,111110.0,1.7849426]
[1756885261556,1.84585177,111120.0,111110.0,1.7849426]
[1756885261776,1.8701386,111120.0,111110.0,1.7849426]
[1756885263379,1.87013778,111120.0,111110.0,1.7849426]
[1756885264378,1.87013784,111120.0,111110.0,1.7849426]
[1756885265424,1.82013784,111120.0,111110.0,1.7849426]
[1756885265648,1.82013784,111120.0,111110.0,1.7869226]
[1756885265879,1.87013784,111120.0,111110.0,1.7899826]
[1756885266499,1.86816784,111120.0,111110.0,1.7899826]
[1756885266710,1.82698192,111120.0,111110.0,1.7899826]
[1756885269487,1.82701936,111120.0,111110.0,1.7899826]
[1756885270560,1.77701936,111120.0,111110.0,1.7899826]
[1756885270759,1.82701936,111120.0,111110.0,1.7899826]
[1756885271038,1.80169725,111120.0,111110.0,1.7899826]
[1756885272303,1.85300781,111120.0,111110.0,1.7849426]
[1756885272717,1.89423939,111120.0,111110.0,1.7849426]
[1756885272920,1.94651939,111120.0,111110.0,1.7849426]
[1756885273923,1.92962145,111120.0,111110.0,1.7849426]
[1756885274128,1.94651927,111120.0,111110.0,1.7849426]
[1756885274556,2.03843526,111120.0,111110.0,1.7849426]
[1756885275197,2.03839526,111120.0,111110.0,1.7849426]
[1756885276613,2.03611526,111120.0,111110.0,1.7849426]
[1756885278771,2.03839526,111120.0,111110.0,1.7849426]
[1756885279152,2.03611526,111120.0,111110.0,1.7849426]
[1756885281682,2.03611526,111120.0,111110.0,1.7902726]
[1756885282965,2.01210681,111120.0,111110.0,1.7902726]
[1756885283778,2.01210119,111120.0,111110.0,1.7902726]
[1756885284372,2.01210119,111120.0,111110.0,1.7849426]
[1756885284583,2.014056,111120.0,111110.0,1.20119972]
[1756885284813,2.014056,111120.0,111110.0,1.00840267]
[1756885285017,2.014056,111120.0,111110.0,0.81537246]
[1756885285253,2.014056,111120.0,111110.0,0.73149125]
[1756885285254,2.28804143,111120.0,111110.0,0.73149125]
[1756885285462,2.03606964,111120.0,111110.0,0.73682125]
[1756885285700,1.88506964,111120.0,111110.0,0.73149125]
[1756885285918,2.03606964,111120.0,111110.0,0.73149125]
[1756885286198,2.03406964,111120.0,111110.0,0.73149125]
[1756885286447,2.03106964,111120.0,111110.0,0.73149125]
[1756885286674,2.013736,111120.0,111110.0,0.32496721]
[1756885286872,2.013736,111120.0,111110.0,0.21199532]
[1756885287351,2.013736,111120.0,111110.0,1e-08]
[1756885287511,2.018736,111120.0,111110.0,1e-08]
[1756885287712,2.021016,111120.0,111110.0,1e-08]
[1756885288119,2.016016,111120.0,111110.0,1e-08]
[1756885288522,2.021016,111120.0,111110.0,1e-08]
[1756885289263,2.018736,111120.0,111110.0,1e-08]
[1756885292415,2.021016,111120.0,111110.0,1e-08]
[1756885292838,0.66933236,111110.0,111100.0,1e-08]
[1756885293165,1.45631852,111110.0,111100.0,0.00317001]
[1756885293371,1.45829852,111110.0,111100.0,1e-08]
[1756885293594,1.49945772,111110.0,111100.0,1e-08]
[1756885293951,1.49945772,111110.0,111100.0,0.00533001]
[1756885295189,1.53911454,111110.0,111100.0,0.00533001]
[1756885295385,1.54311454,111110.0,111100.0,0.00533001]
[1756885295807,1.54811454,111110.0,111100.0,0.00633001]
[1756885296137,1.54811454,111110.0,111100.0,0.00100001]
[1756885297320,1.5480883,111110.0,111100.0,0.00100001]
[1756885297535,1.5480883,111110.0,111100.0,0.00633001]
[1756885298485,1.5480883,111110.0,111100.0,0.00417001]
[1756885299650,1.5480883,111110.0,111100.0,0.00100001]
[1756885300693,1.5480883,111110.0,111100.0,1e-08]
[1756885300694,1.5503583,111110.0,111100.0,1e-08]
[1756885300834,1.59870039,111110.0,111100.0,1e-08]
[1756885302727,1.60668468,111110.0,111100.0,1e-08]
[1756885302924,1.59259427,111110.0,111100.0,1e-08]
[1756885305204,1.59028427,111110.0,111100.0,1e-08]
[1756885305400,1.61458219,111110.0,111100.0,1e-08]
[1756885306441,1.46362219,111110.0,111100.0,1e-08]
[1756885306650,1.61458219,111110.0,111100.0,0.00522001]
[1756885307275,1.59057374,111110.0,111100.0,0.00522001]
[1756885307643,1.59057003,111110.0,111100.0,0.00522001]
[1756885308822,1.58859003,111110.0,111100.0,0.00522001]
[1756885309051,0.972836,111110.0,111100.0,0.00522001]
[1756885309254,0.95786143,111110.0,111100.0,0.02848001]
[1756885309516,1.29786143,111110.0,111100.0,0.02848001]
[1756885310189,1.29153344,111110.0,111100.0,0.02848001]
[1756885311294,1.29786196,111110.0,111100.0,0.02848001]
[1756885312890,1.14690196,111110.0,111100.0,0.02848001]
[1756885313092,1.38973795,111110.0,111100.0,0.02848001]
[1756885313534,1.41704006,111110.0,111100.0,0.00522001]
[1756885313969,1.32314407,111110.0,111100.0,0.00522001]
[1756885314178,1.17222407,111110.0,111100.0,0.00522001]
[1756885314396,1.32314407,111110.0,111100.0,0.00522001]
[1756885314607,1.32314823,111110.0,111100.0,0.00522001]
[1756885315237,1.14057596,111110.0,111100.0,0.00522001]
[1756885315455,1.29149596,111110.0,111100.0,0.02848001]
[1756885317273,1.14057596,111110.0,111100.0,0.02848001]
[1756885317479,1.18521846,111110.0,111100.0,0.02848001]
[1756885317677,1.48450231,111110.0,111100.0,0.02848001]
[1756885318014,1.33358223,111110.0,111100.0,0.02848001]
[1756885318250,1.48450221,111110.0,111100.0,0.02848001]
[1756885318416,1.47606492,111110.0,111100.0,0.02848001]
[1756885322020,0.8385634,111110.0,111100.0,0.00522001]
[1756885322213,1.47606492,111110.0,111100.0,0.00522001]
[1756885324575,1.32514492,111110.0,111100.0,0.00522001]
[1756885324779,0.70695059,111110.0,111100.0,0.02848001]
[1756885324984,1.02570135,111110.0,111100.0,0.02848001]
[1756885326046,0.87482135,111110.0,111100.0,0.02848001]
[1756885327330,0.87482135,111110.0,111100.0,0.22943683]